fUSD/lending_fUSD_20250120
["ID","MTS","AMOUNT","RATE_DAILY","PERIOD"]
[349731247,1737397860577,-500.0,0.00021264,2]
[349731248,1737397860688,-500.0,0.00021264,2]
[349731249,1737397860699,-500.0,0.00021264,2]
[349731250,1737397860708,-500.0,0.00021264,2]
[349731251,1737397860718,-500.0,0.00021264,2]
[349731252,1737397860728,-500.0,0.00021264,2]
[349731253,1737397860738,-735.82,0.00021264,2]
[349731254,1737397860748,-500.0,0.00021264,2]
[349731255,1737397860759,-513.05,0.00021264,2]
[349731256,1737397860769,-500.0,0.00021264,2]
[349731257,1737397860779,-500.0,0.00021264,2]
[349731258,1737397860793,-500.0,0.00021264,2]
[349731259,1737397860803,-500.0,0.00021264,2]
[349731260,1737397860813,-500.0,0.00021264,2]
[349731261,1737397860824,-531.58,0.00021264,2]
[349731262,1737397860840,-500.0,0.00021264,2]
[349731263,1737397860850,-500.0,0.00021264,2]
[349731264,1737397860860,-500.0,0.00021264,2]
[349731265,1737397860870,-500.0,0.00021264,2]
[349731266,1737397860880,-500.0,0.00021265,2]
[349731267,1737397860890,-500.0,0.00021265,2]
[349731268,1737397860900,-500.0,0.00021265,2]
[349731269,1737397860910,-500.0,0.00021265,2]
[349731270,1737397860920,-500.0,0.00021265,2]
[349731271,1737397860929,-500.0,0.00021265,2]
[349731272,1737397860940,-500.0,0.00021265,2]
[349731273,1737397860950,-632.77294597,0.00021265,2]
[349731274,1737397860960,-597.06,0.00021265,2]
[349731275,1737397860970,-500.0,0.00021265,2]
[349731276,1737397860979,-500.0,0.00021265,2]
[349731277,1737397860989,-500.0,0.00021265,2]
[349731278,1737397861000,-150.0,0.00021266,2]
[349731279,1737397861010,-1494.57,0.00021275,2]
[349731280,1737397861019,-721.27380562,0.00021289,2]
[349731281,1737397861029,-150.0,0.00021295,2]
[349731282,1737397861042,-150.0,0.0002131,2]
[349731283,1737397861052,-150.0,0.00021315,2]
[349731284,1737397861061,-250.0,0.00021321,2]
[349731285,1737397861071,-2623.0,0.00021324,2]
[349731286,1737397861081,-630.65606055,0.00021338,2]
[349731287,1737397861092,-500.0,0.00021338,2]
[349731288,1737397861102,-500.0,0.00021338,2]
[349731289,1737397861112,-500.0,0.00021338,2]
[349731290,1737397861122,-616.66934,0.00021339,2]
[349731291,1737397861131,-500.0,0.00021339,2]
[349731292,1737397861141,-500.0,0.00021339,2]
[349731293,1737397861151,-758.96,0.00021339,2]
[349731294,1737397861161,-596.669327,0.00021339,2]
[349731295,1737397861171,-500.0,0.00021339,2]
[349731296,1737397861181,-1743.11,0.00021339,2]
[349731297,1737397861191,-1379.8,0.00021339,2]
[349731298,1737397861201,-500.0,0.00021339,2]
[349731299,1737397861211,-500.0,0.00021339,2]
[349731300,1737397861221,-500.0,0.00021339,2]
[349731301,1737397861231,-3211.89,0.00021339,2]
[349731302,1737397861241,-500.0,0.00021339,2]
[349731303,1737397861250,-719.26,0.00021339,2]
[349731304,1737397861261,-1284.65,0.00021339,2]
[349731305,1737397861271,-923.32,0.00021339,2]
[349731306,1737397861280,-1202.05,0.00021339,2]
[349731307,1737397861294,-542.65,0.00021339,2]
[349731308,1737397861304,-500.0,0.00021339,2]
[349731309,1737397861315,-510.93,0.00021339,2]
[349731310,1737397861329,-500.0,0.00021339,2]
[349731311,1737397861339,-2369.21,0.00021339,2]
[349731312,1737397861351,-500.0,0.00021339,2]
[349731313,1737397861363,-1325.13,0.00021339,2]
[349731314,1737397861374,-1421.64,0.00021339,2]
[349731315,1737397861384,-3407.58,0.00021339,2]
[349731316,1737397861398,-1792.88,0.00021339,2]
[349731317,1737397861408,-500.0,0.00021339,2]
[349731318,1737397861418,-1026.23,0.00021339,2]
[349731319,1737397861429,-656.47,0.00021339,2]
[349731320,1737397861440,-1175.98,0.00021339,2]
[349731321,1737397861450,-1093.21,0.00021339,2]
[349731322,1737397861460,-500.0,0.00021339,2]
[349731323,1737397861470,-2073.11,0.00021339,2]
[349731324,1737397861483,-2287.33,0.00021339,2]
[349731325,1737397861493,-500.0,0.00021339,2]
[349731326,1737397861502,-2360.21,0.00021339,2]
[349731327,1737397861513,-1517.47,0.00021339,2]
[349731328,1737397861523,-500.0,0.00021339,2]
[349731329,1737397861538,-728.35,0.00021339,2]
[349731330,1737397861549,-500.0,0.00021339,2]
[349731331,1737397861558,-777.0,0.00021339,2]
[349731332,1737397861568,-525.86,0.00021339,2]
[349731333,1737397861578,-1352.97,0.00021339,2]
[349731334,1737397861588,-500.0,0.00021339,2]
[349731335,1737397861598,-2621.73,0.00021339,2]
[349731336,1737397861608,-2214.8,0.00021339,2]
[349731337,1737397861619,-500.0,0.00021339,2]
[349731338,1737397861630,-500.0,0.00021339,2]
[349731339,1737397861642,-1050.29,0.00021339,2]
[349731340,1737397861652,-921.05,0.00021339,2]
[349731341,1737397861662,-500.0,0.00021339,2]
[349731342,1737397861671,-500.0,0.00021339,2]
[349731343,1737397861681,-2832.84,0.00021339,2]
[349731344,1737397861691,-500.0,0.00021339,2]
[349731345,1737397861701,-155.84773268,0.0002134,2]
[349731346,1737397861712,-209.4912608,0.00021344,2]
[349731347,1737397861721,-455.0088483,0.00021348,2]
[349731348,1737397861731,-150.0,0.00021373,2]
[349731349,1737397861741,-150.0,0.00021382,2]
[349731350,1737397861752,-150.0,0.00021387,2]
[349731351,1737397861761,-1268.0,0.00021391,2]
[349731352,1737397861772,-2016.0,0.00021391,2]
[349731353,1737397861781,-3901.0,0.00021391,2]
[349731354,1737397861795,-236.702,0.00021391,2]
[349731355,1737397861805,-150.0,0.00021391,2]
[349731356,1737397861815,-200.0,0.000214,7]
[349731357,1737397861826,-218.0,0.000214,2]
[349731358,1737397861837,-8635.89165538,0.000214,2]
[349731359,1737397861847,-150.0,0.00021405,2]
[349731360,1737397861857,-1000.0,0.00021434,2]
[349731361,1737397861867,-1334.53,0.00021437,2]
[349731362,1737397861877,-500.0,0.0002144,2]
[349731363,1737397861887,-639.2096161,0.0002144,2]
[349731364,1737397861897,-500.0,0.0002144,2]
[349731365,1737397861906,-500.0,0.0002144,2]
[349731366,1737397861917,-500.0,0.0002144,2]
[349731367,1737397861927,-500.0,0.0002144,2]
[349731368,1737397861937,-500.0,0.0002144,2]
[349731369,1737397861947,-500.0,0.0002144,2]
[349731370,1737397861957,-500.0,0.0002144,2]
[349731371,1737397861967,-567.0,0.0002144,2]
[349731372,1737397861976,-500.0,0.0002144,2]
[349731373,1737397861986,-500.0,0.0002144,2]
[349731374,1737397861996,-946.34,0.0002144,2]
[349731375,1737397862005,-500.0,0.0002144,2]
[349731376,1737397862014,-500.0,0.0002144,2]
[349731377,1737397862024,-500.0,0.0002144,2]
[349731378,1737397862035,-500.0,0.0002144,2]
[349731379,1737397862046,-500.0,0.0002144,2]
[349731380,1737397862057,-479.81998464,0.0002144,2]
[349731381,1737397862067,-500.0,0.0002144,2]
[349731382,1737397862077,-500.0,0.0002144,2]
[349731383,1737397862087,-500.0,0.0002144,2]
[349731384,1737397862097,-251.71509325,0.0002144,2]
[349731385,1737397862107,-500.0,0.0002144,2]
[349731386,1737397862118,-261.78138124,0.0002144,2]
[349731387,1737397862128,-500.0,0.0002144,2]
[349731388,1737397862139,-500.0,0.0002144,2]
[349731389,1737397862149,-500.0,0.0002144,2]
[349731390,1737397862159,-500.0,0.0002144,2]
[349731391,1737397862170,-500.0,0.0002144,2]
[349731392,1737397862180,-500.0,0.0002144,2]
[349731393,1737397862190,-500.0,0.0002144,2]
[349731394,1737397862200,-500.0,0.0002144,2]
[349731395,1737397862209,-500.0,0.0002144,2]
[349731396,1737397862219,-500.0,0.0002144,2]
[349731397,1737397862229,-500.0,0.0002144,2]
[349731398,1737397862239,-500.0,0.0002144,2]
[349731399,1737397862250,-500.0,0.0002144,2]
[349731400,1737397862260,-500.0,0.0002144,2]
[349731401,1737397862270,-500.0,0.0002144,2]
[349731402,1737397862280,-500.0,0.0002144,2]
[349731403,1737397862292,-500.0,0.0002144,2]
[349731404,1737397862303,-401.38616258,0.0002144,2]
[349731405,1737397862313,-500.0,0.0002144,2]
[349731406,1737397862324,-500.0,0.0002144,2]
[349731407,1737397862433,-500.0,0.0002144,2]
[349731408,1737397862444,-500.0,0.0002144,2]
[349731409,1737397862455,-500.0,0.0002144,2]
[349731410,1737397862466,-500.0,0.0002144,2]
[349731411,1737397862475,-648.58,0.0002144,2]
[349731412,1737397862485,-500.0,0.0002144,2]
[349731413,1737397862495,-500.0,0.0002144,2]
[349731414,1737397862505,-500.0,0.0002144,2]
[349731415,1737397862515,-500.0,0.0002144,2]
[349731416,1737397862525,-500.0,0.0002144,2]
[349731417,1737397862536,-500.0,0.0002144,2]
[349731418,1737397862547,-500.0,0.0002144,2]
[349731419,1737397862557,-500.0,0.0002144,2]
[349731420,1737397862567,-500.0,0.0002144,2]
[349731421,1737397862577,-500.0,0.0002144,2]
[349731422,1737397862586,-443.42227677,0.0002144,2]
[349731423,1737397862597,-500.0,0.0002144,2]
[349731424,1737397862607,-813.51,0.0002144,2]
[349731425,1737397862617,-245.49800396,0.0002144,2]
[349731426,1737397862627,-500.0,0.0002144,2]
[349731427,1737397862638,-500.0,0.0002144,2]
[349731428,1737397862648,-500.0,0.0002144,2]
[349731429,1737397862659,-617.42,0.0002144,2]
[349731430,1737397862669,-500.0,0.0002144,2]
[349731431,1737397862679,-500.0,0.0002144,2]
[349731432,1737397862689,-500.0,0.0002144,2]
[349731433,1737397862699,-1041.97,0.0002144,2]
[349731434,1737397862710,-500.0,0.0002144,2]
[349731435,1737397862720,-500.0,0.0002144,2]
[349731436,1737397862730,-500.0,0.0002144,2]
[349731437,1737397862740,-1772.91,0.0002144,2]
[349731438,1737397862751,-500.0,0.0002144,2]
[349731439,1737397862761,-500.0,0.0002144,2]
[349731440,1737397862771,-1049.94,0.0002144,2]
[349731441,1737397862781,-750.42,0.0002144,2]
[349731442,1737397862794,-562.34,0.0002144,2]
[349731443,1737397862804,-1636.87,0.0002144,2]
[349731444,1737397862814,-670.25,0.0002144,2]
[349731445,1737397862824,-522.94,0.0002144,2]
[349731446,1737397862834,-2806.17,0.0002144,2]
[349731447,1737397862845,-5267.06,0.0002144,2]
[349731448,1737397862855,-811.89,0.0002144,2]
[349731449,1737397862865,-500.0,0.0002144,2]
[349731450,1737397862875,-591.11,0.0002144,2]
[349731451,1737397862886,-500.0,0.0002144,2]
[349731452,1737397862896,-500.0,0.0002144,2]
[349731453,1737397862906,-585.55,0.0002144,2]
[349731454,1737397862916,-2198.8,0.0002144,2]
[349731455,1737397862926,-943.09,0.0002144,2]
[349731456,1737397862936,-500.0,0.0002144,2]
[349731457,1737397862947,-357.52376095,0.0002144,2]
[349731458,1737397862957,-500.0,0.0002144,2]
[349731459,1737397862968,-1543.53,0.0002144,2]
[349731460,1737397862978,-1697.74,0.0002144,2]
[349731461,1737397862989,-500.0,0.0002144,2]
[349731462,1737397862999,-406.10589291,0.0002144,2]
[349731463,1737397863009,-500.0,0.0002144,2]
[349731464,1737397863020,-1295.84,0.0002144,2]
[349731465,1737397863031,-500.0,0.0002144,2]
[349731466,1737397863047,-2441.29,0.0002144,2]
[349731467,1737397863059,-500.0,0.0002144,2]
[349731468,1737397863070,-517.74,0.0002144,2]
[349731469,1737397863081,-500.0,0.0002144,2]
[349731470,1737397863092,-500.0,0.0002144,2]
[349731471,1737397863102,-775.72,0.0002144,2]
[349731472,1737397863112,-500.0,0.0002144,2]
[349731473,1737397863124,-500.0,0.0002144,2]
[349731474,1737397863134,-1238.08,0.0002144,2]
[349731475,1737397863146,-1368.57,0.0002144,2]
[349731476,1737397863157,-500.0,0.0002144,2]
[349731477,1737397863168,-500.0,0.0002144,2]
[349731478,1737397863178,-500.0,0.0002144,2]
[349731479,1737397863188,-500.0,0.0002144,2]
[349731480,1737397863198,-1000.0,0.0002144,2]
[349731481,1737397863208,-527.53,0.0002144,2]
[349731482,1737397863218,-801.34,0.0002144,2]
[349731483,1737397863228,-988.73,0.0002144,2]
[349731484,1737397863238,-500.0,0.0002144,2]
[349731485,1737397863248,-500.0,0.0002144,2]
[349731486,1737397863262,-554.04,0.0002144,2]
[349731487,1737397863272,-275.89316069,0.0002144,2]
[349731488,1737397863282,-500.0,0.0002144,2]
[349731489,1737397863298,-899.98,0.0002144,2]
[349731490,1737397863308,-500.0,0.0002144,2]
[349731491,1737397863319,-500.0,0.0002144,2]
[349731492,1737397863331,-500.0,0.0002144,2]
[349731493,1737397863341,-1398.85,0.0002144,2]
[349731494,1737397863352,-604.98452667,0.0002144,2]
[349731495,1737397863363,-500.0,0.0002144,2]
[349731496,1737397863373,-966.69,0.0002144,2]
[349731497,1737397863384,-500.0,0.0002144,2]
[349731498,1737397863395,-326.89316965,0.0002144,2]
[349731499,1737397863408,-1419.75,0.0002144,2]
[349731500,1737397863418,-500.0,0.0002144,2]
[349731501,1737397863428,-500.0,0.0002144,2]
[349731502,1737397863440,-45316.48534312,0.00021447,2]
[349731503,1737397863451,-28565.53006295,0.00021448,2]
[349731504,1737397863462,-209.4912608,0.00021456,2]
[349731505,1737397863474,-150.0,0.00021458,2]
[349731506,1737397863484,-683.3228189,0.00021474,2]
[349731507,1737397863495,-689.42706905,0.00021478,2]
[349731508,1737397863506,-150.0,0.0002148,2]
[349731509,1737397863517,-150.0,0.00021498,2]
[349731510,1737397863528,-2110.0,0.000215,2]
[349731511,1737397863542,-200.0,0.000215,7]
[349731512,1737397863552,-150.0,0.00021514,2]
[349731513,1737397863563,-150.0,0.00021521,2]
[349731514,1737397863574,-150.0,0.00021526,2]
[349731515,1737397863586,-1511.78,0.00021526,2]
[349731516,1737397863597,-500.0,0.00021538,2]
[349731517,1737397863608,-500.0,0.00021538,2]
[349731518,1737397863619,-500.0,0.00021538,2]
[349731519,1737397863629,-500.0,0.00021538,2]
[349731520,1737397863641,-500.0,0.00021538,2]
[349731521,1737397863652,-500.0,0.00021538,2]
[349731522,1737397863663,-500.0,0.00021538,2]
[349731523,1737397863673,-500.0,0.00021538,2]
[349731524,1737397863683,-500.0,0.00021538,2]
[349731525,1737397863694,-500.0,0.00021538,2]
[349731526,1737397863704,-500.0,0.00021538,2]
[349731527,1737397863715,-500.0,0.00021538,2]
[349731528,1737397863725,-500.0,0.00021538,2]
[349731529,1737397863736,-500.0,0.00021538,2]
[349731530,1737397863747,-500.0,0.00021538,2]
[349731531,1737397863757,-500.0,0.00021538,2]
[349731532,1737397863768,-500.0,0.00021538,2]
[349731533,1737397863779,-500.0,0.00021538,2]
[349731534,1737397863792,-500.0,0.00021538,2]
[349731535,1737397863802,-500.0,0.00021538,2]
[349731536,1737397863813,-500.0,0.00021538,2]
[349731537,1737397863823,-500.0,0.00021538,2]
[349731538,1737397863834,-500.0,0.00021538,2]
[349731539,1737397863844,-500.0,0.00021538,2]
[349731540,1737397863855,-500.0,0.00021538,2]
[349731541,1737397863865,-500.0,0.00021538,2]
[349731542,1737397863875,-500.0,0.00021538,2]
[349731543,1737397863886,-500.0,0.00021538,2]
[349731544,1737397863896,-500.0,0.00021538,2]
[349731545,1737397863910,-500.0,0.00021538,2]
[349731546,1737397863924,-500.0,0.00021538,2]
[349731547,1737397863934,-500.0,0.00021538,2]
[349731548,1737397863946,-500.0,0.00021538,2]
[349731549,1737397863956,-500.0,0.00021538,2]
[349731550,1737397863965,-500.0,0.00021538,2]
[349731551,1737397863976,-500.0,0.00021538,2]
[349731552,1737397863986,-500.0,0.00021538,2]
[349731553,1737397864098,-568.79,0.00021538,2]
[349731554,1737397864108,-500.0,0.00021538,2]
[349731555,1737397864118,-500.0,0.00021538,2]
[349731556,1737397864129,-500.0,0.00021538,2]
[349731557,1737397864139,-573.37,0.00021538,2]
[349731558,1737397864150,-500.0,0.00021538,2]
[349731559,1737397864160,-500.0,0.00021538,2]
[349731560,1737397864170,-735.82,0.00021538,2]
[349731561,1737397864181,-500.0,0.00021538,2]
[349731562,1737397864191,-513.05,0.00021538,2]
[349731563,1737397864201,-500.0,0.00021538,2]
[349731564,1737397864211,-500.0,0.00021538,2]
[349731565,1737397864220,-487.96507108,0.00021538,2]
[349731566,1737397864230,-500.0,0.00021538,2]
[349731567,1737397864240,-500.0,0.00021538,2]
[349731568,1737397864250,-531.58,0.00021538,2]
[349731569,1737397864259,-500.0,0.00021538,2]
[349731570,1737397864269,-500.0,0.00021538,2]
[349731571,1737397864279,-500.0,0.00021538,2]
[349731572,1737397864292,-500.0,0.00021538,2]
[349731573,1737397864302,-500.0,0.00021539,2]
[349731574,1737397864312,-500.0,0.00021539,2]
[349731575,1737397864323,-500.0,0.00021539,2]
[349731576,1737397864336,-500.0,0.00021539,2]
[349731577,1737397864346,-500.0,0.00021539,2]
[349731578,1737397864356,-500.0,0.00021539,2]
[349731579,1737397864367,-1863.0,0.0002154,2]
[349731580,1737397864376,-2993.022,0.0002154,2]
[349731581,1737397864386,-820.0,0.0002154,2]
[349731582,1737397864396,-1260.0,0.0002154,2]
[349731583,1737397864406,-907.0,0.0002154,2]
[349731584,1737397864418,-3983.0,0.0002154,2]
[349731585,1737397864428,-537.0,0.0002154,2]
[349731586,1737397864438,-172.0,0.00021544,2]
[349731587,1737397864448,-1000.0,0.00021545,2]
[349731588,1737397864458,-1013.6264311,0.0002156,2]
[349731589,1737397864469,-209.4912608,0.00021567,2]
[349731590,1737397864479,-150.0,0.00021572,2]
[349731591,1737397864488,-150.0,0.00021579,2]
[349731592,1737397864498,-200.0,0.000216,7]
[349731593,1737397864508,-1000.0,0.000216,2]
[349731594,1737397864518,-178.93857408,0.000216,2]
[349731595,1737397864527,-7580.53692257,0.00021612,2]
[349731596,1737397864539,-500.0,0.00021612,2]
[349731597,1737397864550,-481.20707773,0.00021612,2]
[349731598,1737397864559,-500.0,0.00021612,2]
[349731599,1737397864569,-616.66934,0.00021613,2]
[349731600,1737397864579,-500.0,0.00021613,2]
[349731601,1737397864588,-500.0,0.00021613,2]
[349731602,1737397864598,-758.96,0.00021613,2]
[349731603,1737397864607,-596.669327,0.00021613,2]
[349731604,1737397864616,-500.0,0.00021613,2]
[349731605,1737397864626,-1743.11,0.00021613,2]
[349731606,1737397864635,-1379.8,0.00021613,2]
[349731607,1737397864644,-500.0,0.00021613,2]
[349731608,1737397864654,-500.0,0.00021613,2]
[349731609,1737397864663,-500.0,0.00021613,2]
[349731610,1737397864673,-3211.89,0.00021613,2]
[349731611,1737397864682,-500.0,0.00021613,2]
[349731612,1737397864693,-719.26,0.00021613,2]
[349731613,1737397864702,-1284.65,0.00021613,2]
[349731614,1737397864713,-923.32,0.00021613,2]
[349731615,1737397864723,-1202.05,0.00021613,2]
[349731616,1737397864732,-542.65,0.00021613,2]
[349731617,1737397864741,-500.0,0.00021613,2]
[349731618,1737397864751,-510.93,0.00021613,2]
[349731619,1737397864761,-500.0,0.00021613,2]
[349731620,1737397864775,-2369.21,0.00021613,2]
[349731621,1737397864797,-500.0,0.00021613,2]
[349731622,1737397864819,-1325.13,0.00021613,2]
[349731623,1737397864839,-1421.64,0.00021613,2]
[349731624,1737397864857,-3407.58,0.00021613,2]
[349731625,1737397864874,-1792.88,0.00021613,2]
[349731626,1737397864894,-394.2589945,0.00021613,2]
[349731627,1737397864914,-1026.23,0.00021613,2]
[349731628,1737397864931,-656.47,0.00021613,2]
[349731629,1737397864951,-1175.98,0.00021613,2]
[349731630,1737397864969,-1093.21,0.00021613,2]
[349731631,1737397864983,-500.0,0.00021613,2]
[349731632,1737397865007,-2073.11,0.00021613,2]
[349731633,1737397865021,-2287.33,0.00021613,2]
[349731634,1737397865038,-500.0,0.00021613,2]
[349731635,1737397865053,-2360.21,0.00021613,2]
[349731636,1737397865069,-1517.47,0.00021613,2]
[349731637,1737397865090,-500.0,0.00021613,2]
[349731638,1737397865105,-728.35,0.00021613,2]
[349731639,1737397865121,-597.92,0.00021613,2]
[349731640,1737397865136,-777.0,0.00021613,2]
[349731641,1737397865151,-525.86,0.00021613,2]
[349731642,1737397865165,-1352.97,0.00021613,2]
[349731643,1737397865182,-500.0,0.00021613,2]
[349731644,1737397865196,-2621.73,0.00021613,2]
[349731645,1737397865211,-2214.8,0.00021613,2]
[349731646,1737397865227,-500.0,0.00021613,2]
[349731647,1737397865243,-500.0,0.00021613,2]
[349731648,1737397865258,-1050.29,0.00021613,2]
[349731649,1737397865274,-921.05,0.00021613,2]
[349731650,1737397865291,-500.0,0.00021613,2]
[349731651,1737397865306,-500.0,0.00021613,2]
[349731652,1737397865323,-2832.84,0.00021613,2]
[349731653,1737397865342,-500.0,0.00021613,2]
[349731654,1737397865359,-155.84773267,0.0002162,2]
[349731655,1737397865375,-500.00076775,0.00021621,2]
[349731656,1737397865390,-1500.0,0.00021622,2]
[349731657,1737397865405,-455.0088483,0.00021624,2]
[349731658,1737397865421,-1000.0,0.00021649,2]
[349731659,1737397865435,-150.0,0.00021658,2]
[349731660,1737397865451,-150.0,0.00021663,2]
[349731661,1737397865467,-150.0,0.0002167,2]
[349731662,1737397865482,-45316.48534312,0.00021672,2]
[349731663,1737397865499,-541.57142317,0.00021673,2]
[349731664,1737397865517,-28565.53006295,0.00021674,2]
[349731665,1737397865532,-209.4912608,0.00021678,3]
[349731666,1737397865551,-200.0,0.000217,7]
[349731667,1737397865566,-218.0,0.000217,2]
[349731668,1737397865583,-87638.98294443,0.000217,2]
[349731669,1737397865597,-150.0,0.00021712,2]
[349731670,1737397865612,-500.0,0.00021714,2]
[349731671,1737397865627,-500.0,0.00021714,2]
[349731672,1737397865642,-500.0,0.00021714,2]
[349731673,1737397865657,-560.74959739,0.00021714,2]
[349731674,1737397865672,-500.0,0.00021714,2]
[349731675,1737397865687,-567.0,0.00021714,2]
[349731676,1737397865702,-500.0,0.00021714,2]
[349731677,1737397865717,-500.0,0.00021714,2]
[349731678,1737397865733,-946.34,0.00021714,2]
[349731679,1737397865749,-500.0,0.00021714,2]
[349731680,1737397865763,-500.0,0.00021714,2]
[349731681,1737397865778,-500.0,0.00021714,2]
[349731682,1737397865796,-500.0,0.00021714,2]
[349731683,1737397865811,-500.0,0.00021714,2]
[349731684,1737397865827,-500.0,0.00021714,2]
[349731685,1737397865840,-500.0,0.00021714,2]
[349731686,1737397865849,-500.0,0.00021714,2]
[349731687,1737397865859,-500.0,0.00021714,2]
[349731688,1737397866034,-500.0,0.00021714,2]
[349731689,1737397866047,-475.89068416,0.00021714,2]
[349731690,1737397866056,-500.0,0.00021714,2]
[349731691,1737397866065,-500.0,0.00021714,2]
[349731692,1737397866075,-500.0,0.00021714,2]
[349731693,1737397866084,-500.0,0.00021714,2]
[349731694,1737397866094,-500.0,0.00021714,2]
[349731695,1737397866104,-500.0,0.00021714,2]
[349731696,1737397866113,-254.40517456,0.00021714,2]
[349731697,1737397866123,-500.0,0.00021714,2]
[349731698,1737397866132,-500.0,0.00021714,2]
[349731699,1737397866141,-500.0,0.00021714,2]
[349731700,1737397866151,-500.0,0.00021714,2]
[349731701,1737397866160,-500.0,0.00021714,2]
[349731702,1737397866170,-500.0,0.00021714,2]
[349731703,1737397866179,-500.0,0.00021714,2]
[349731704,1737397866188,-500.0,0.00021714,2]
[349731705,1737397866198,-500.0,0.00021714,2]
[349731706,1737397866208,-500.0,0.00021714,2]
[349731707,1737397866217,-500.0,0.00021714,2]
[349731708,1737397866227,-500.0,0.00021714,2]
[349731709,1737397866236,-500.0,0.00021714,2]
[349731710,1737397866246,-648.58,0.00021714,2]
[349731711,1737397866255,-500.0,0.00021714,2]
[349731712,1737397866264,-500.0,0.00021714,2]
[349731713,1737397866274,-500.0,0.00021714,2]
[349731714,1737397866284,-500.0,0.00021714,2]
[349731715,1737397866297,-500.0,0.00021714,2]
[349731716,1737397866306,-500.0,0.00021714,2]
[349731717,1737397866316,-500.0,0.00021714,2]
[349731718,1737397866326,-500.0,0.00021714,2]
[349731719,1737397866338,-500.0,0.00021714,2]
[349731720,1737397866349,-500.0,0.00021714,2]
[349731721,1737397866359,-500.0,0.00021714,2]
[349731722,1737397866371,-813.51,0.00021714,2]
[349731723,1737397866381,-500.0,0.00021714,2]
[349731724,1737397866390,-500.0,0.00021714,2]
[349731725,1737397866400,-617.42,0.00021714,2]
[349731726,1737397866410,-500.0,0.00021714,2]
[349731727,1737397866420,-500.0,0.00021714,2]
[349731728,1737397866429,-500.0,0.00021714,2]
[349731729,1737397866439,-500.0,0.00021714,2]
[349731730,1737397866449,-1041.97,0.00021714,2]
[349731731,1737397866459,-500.0,0.00021714,2]
[349731732,1737397866468,-500.0,0.00021714,2]
[349731733,1737397866478,-1772.91,0.00021714,2]
[349731734,1737397866488,-500.0,0.00021714,2]
[349731735,1737397866497,-500.0,0.00021714,2]
[349731736,1737397866507,-1049.94,0.00021714,2]
[349731737,1737397866516,-750.42,0.00021714,2]
[349731738,1737397866526,-562.34,0.00021714,2]
[349731739,1737397866540,-1636.87,0.00021714,2]
[349731740,1737397866550,-670.25,0.00021714,2]
[349731741,1737397866560,-522.94,0.00021714,2]
[349731742,1737397866570,-2806.17,0.00021714,2]
[349731743,1737397866580,-5267.06,0.00021714,2]
[349731744,1737397866590,-811.89,0.00021714,2]
[349731745,1737397866600,-500.0,0.00021714,2]
[349731746,1737397866611,-591.11,0.00021714,2]